bitfinex/quotes_ETHUSD_20250520
["timestamp","ask_amount","ask_price","bid_price","bid_amount"]
[1747746984048,4.02681091,2483.4,2483.3,18.56466288]
[1747746984249,4.02681091,2483.4,2483.3,22.77997688]
[1747746985446,4.02681091,2483.4,2483.3,23.00500945]
[1747746986867,4.02681091,2483.4,2483.3,23.38905622]
[1747746987702,4.02648457,2483.6,2483.3,23.38905622]
[1747746987880,4.02617873,2483.8,2483.5,0.7648]
[1747746988193,4.02617873,2483.8,2483.7,8.8287]
[1747746988194,4.02608905,2483.8,2483.7,8.8287]
[1747746988388,4.02608905,2483.8,2483.7,30.354279]
[1747746988770,4.02608905,2483.8,2483.7,30.57931157]
[1747746990401,4.02608905,2483.8,2483.7,30.56986034]
[1747746990602,4.02608905,2483.8,2483.7,32.47164249]
[1747746990805,4.02608905,2483.8,2483.7,31.48491349]
[1747746991008,4.02608905,2483.8,2483.7,30.97191349]
[1747746991373,4.02608905,2483.8,2483.7,27.96174249]
[1747746993108,4.02608905,2483.8,2483.7,12.73036572]
[1747746993318,4.02608905,2483.8,2483.7,29.38050457]
[1747746993525,4.02608905,2483.8,2483.7,26.73423357]
[1747746994198,4.02608905,2483.8,2483.7,26.41406257]
[1747746994599,4.02608905,2483.8,2483.7,32.44806257]
[1747746994998,4.02608905,2483.8,2483.7,30.33402557]
[1747746995221,4.02608905,2483.8,2483.7,33.98707524]
[1747746997289,4.02608905,2483.8,2483.7,31.29632557]
[1747746997499,4.02608905,2483.8,2483.7,16.05003257]
[1747746998105,4.02608905,2483.8,2483.7,15.825]
[1747746998503,4.02608905,2483.8,2483.7,7.825]
[1747746998831,4.02608905,2483.8,2483.7,15.825]
[1747746999726,4.02608905,2483.8,2483.7,33.203]
[1747747000236,4.02608905,2483.8,2483.7,36.584371]
[1747747001929,4.02608905,2483.8,2483.7,40.49903388]
[1747747002295,4.12593646,2483.9,2483.7,40.49903388]
[1747747002296,4.12593646,2483.9,2483.8,8.0]
[1747747002629,0.1,2483.9,2483.8,17.303284]
[1747747002834,0.1,2483.9,2483.8,17.52803167]
[1747747003005,4.02564589,2484.1,2483.8,17.52803167]
[1747747003210,4.02564589,2484.1,2484.0,8.0]
[1747747003414,4.02552891,2484.2,2484.0,29.099299]
[1747747003621,4.02544078,2484.2,2484.1,18.33932467]
[1747747004034,4.02544078,2484.2,2484.1,12.25044767]
[1747747004440,4.02544078,2484.2,2484.1,14.57633167]
[1747747004630,4.02544078,2484.2,2484.1,13.72420113]
[1747747005548,4.02544078,2484.2,2484.1,10.86191713]
[1747747005706,4.02544078,2484.2,2484.1,10.07261713]
[1747747006653,4.02544078,2484.2,2484.1,13.76319313]
[1747747007014,4.02544078,2484.2,2484.1,10.07261713]
[1747747007214,4.02544078,2484.2,2484.1,12.20414413]
[1747747007842,4.02544078,2484.2,2484.1,12.58884901]
[1747747010265,4.02544078,2484.2,2484.1,13.90362201]
[1747747010969,4.02544078,2484.2,2484.1,13.14683301]
[1747747011570,4.02544078,2484.2,2484.1,10.45732201]
[1747747011742,4.02544078,2484.2,2484.1,26.01045255]
[1747747011924,4.02544078,2484.2,2484.1,22.45745255]
[1747747012261,4.02544078,2484.2,2484.1,16.42445255]
[1747747012560,4.02544078,2484.2,2484.1,22.45745255]
[1747747014867,4.02544078,2484.2,2484.1,39.83345255]
[1747747016982,4.02544078,2484.2,2484.1,43.73581543]
[1747747017269,4.02544078,2484.2,2484.1,53.40219543]
[1747747017436,4.02544078,2484.2,2484.1,52.03941743]
[1747747017638,4.02544078,2484.2,2484.1,51.54270743]
[1747747019654,4.02544078,2484.2,2484.1,46.52096743]
[1747747019836,4.02544078,2484.2,2484.1,43.73581543]
[1747747020171,4.02544078,2484.2,2484.1,46.07301543]
[1747747020354,4.02544078,2484.2,2484.1,43.73581543]
[1747747020556,4.02544078,2484.2,2484.1,39.83345255]
[1747747021039,4.02544078,2484.2,2484.1,42.27345255]
[1747747022671,4.02495471,2484.5,2484.2,8.0]
[1747747022878,4.02511672,2484.4,2484.3,19.93273]
[1747747023076,4.02502286,2484.5,2484.4,8.0]
[1747747023388,4.02487439,2484.6,2484.5,8.0]
[1747747023535,4.02487439,2484.6,2484.5,29.525579]
[1747747023736,4.02487439,2484.6,2484.5,29.75032667]
[1747747023934,4.02487439,2484.6,2484.5,33.19135563]
[1747747024386,4.02487439,2484.6,2484.5,17.95005063]
[1747747024736,4.02487439,2484.6,2484.5,18.34533155]
[1747747024942,4.02487439,2484.6,2484.5,18.73003643]
[1747747025773,4.02487439,2484.6,2484.5,19.54003643]
[1747747027002,0.1,2484.9,2484.6,0.55]
[1747747027175,4.02354535,2485.4,2484.8,3.62631924]
[1747747027374,3.06652406,2485.2,2485.0,8.0]
[1747747027582,3.06652406,2485.2,2485.1,51.113803]
[1747747027755,3.06652406,2485.2,2485.1,51.846813]
[1747747028187,3.06652406,2485.2,2485.1,52.07156067]
[1747747028392,4.02358495,2485.4,2485.1,54.44374868]
[1747747028592,0.1,2485.9,2485.2,38.109579]
[1747747028796,4.02290767,2485.8,2485.5,0.78]
[1747747028985,4.02291792,2485.8,2485.7,8.0]
[1747747029155,4.1227787,2485.9,2485.7,35.552663]
[1747747029355,0.1,2485.9,2485.8,25.4144923]
[1747747029661,4.12268796,2485.9,2485.8,25.23923997]
[1747747029855,0.1,2485.9,2485.8,25.23923997]
[1747747030050,0.1,2485.9,2485.8,26.06163997]
[1747747031300,4.12268796,2485.9,2485.8,15.80093233]
[1747747031660,4.12268796,2485.9,2485.8,13.00198933]
[1747747031873,4.12268796,2485.9,2485.8,25.80160603]
[1747747032068,4.12268796,2485.9,2485.8,26.0045376]
[1747747032358,4.12268796,2485.9,2485.8,23.4045376]
[1747747032665,4.12268796,2485.9,2485.8,22.37920603]
[1747747033067,0.1,2485.9,2485.8,22.15445836]
[1747747033326,0.1,2485.9,2485.8,25.24930548]
[1747747033466,4.12268796,2485.9,2485.8,25.24930548]
[1747747034458,0.1,2485.9,2485.8,25.24930548]
[1747747034662,4.12268796,2485.9,2485.8,25.24930548]
[1747747035102,4.12268796,2485.9,2485.8,21.754883]
[1747747035305,4.12268796,2485.9,2485.8,15.8]
[1747747035977,4.12268796,2485.9,2485.8,22.624793]
[1747747037102,4.12268796,2485.9,2485.8,23.03509948]
[1747747042198,4.02268796,2485.9,2485.8,23.03509948]
[1747747042705,4.02256192,2486.0,2485.8,26.76927071]
[1747747043012,4.02256192,2486.0,2485.9,16.161917]
[1747747043209,4.02256192,2486.0,2485.9,10.833897]
[1747747046409,4.02256192,2486.0,2485.9,36.197897]
[1747747047108,4.02256192,2486.0,2485.9,33.808338]
[1747747047411,4.02256192,2486.0,2485.9,25.364]
[1747747047607,4.02256192,2486.0,2485.9,32.156979]
[1747747048378,4.02256192,2486.0,2485.9,29.737979]
[1747747048578,4.02256192,2486.0,2485.9,35.766979]
[1747747051115,4.77766192,2486.0,2485.9,25.364]
[1747747051302,4.77766192,2486.0,2485.9,42.852888]
[1747747051691,4.77766192,2486.0,2485.9,39.191]
[1747747051888,4.77766192,2486.0,2485.9,42.852888]
[1747747052093,4.02256192,2486.0,2485.9,46.75525088]
[1747747052815,4.02256192,2486.0,2485.9,46.98004494]
[1747747053332,4.02256192,2486.0,2485.9,43.31815694]
[1747747053617,4.02256192,2486.0,2485.9,43.10098206]
[1747747053778,4.02256192,2486.0,2485.9,39.41579406]
[1747747054180,4.02256192,2486.0,2485.9,39.79967481]
[1747747055882,4.77976192,2486.0,2485.9,17.97267481]
[1747747056107,5.65998135,2486.0,2485.9,25.77167481]
[1747747056480,5.65998135,2486.0,2485.9,25.54688075]
[1747747056879,6.20998135,2486.0,2485.9,25.41721831]
[1747747057084,4.80521162,2485.7,2485.6,0.48114072]
[1747747057291,7.53720144,2485.7,2485.6,8.28014072]
[1747747057798,7.53720144,2485.7,2485.6,0.48114072]
[1747747058116,5.36307347,2485.6,2485.5,7.799]
[1747747058337,7.54506329,2485.6,2485.5,7.799]
[1747747058482,10.17345907,2485.6,2485.5,7.799]
[1747747059724,20.18775119,2485.6,2485.5,7.799]
[1747747063039,4.57349722,2485.4,2485.3,17.362]
[1747747063192,4.57349722,2485.4,2485.2,7.789]
[1747747063193,12.77805911,2485.3,2485.2,7.789]
[1747747063401,18.24360654,2485.3,2485.2,7.789]
[1747747064409,4.02544078,2484.2,2484.1,0.1]
[1747747064636,4.02544078,2484.2,2484.1,7.889]
[1747747068855,0.7876,2484.1,2482.5,0.64152097]
[1747747069061,17.56094379,2483.2,2482.5,0.64152097]
[1747747069354,25.09451439,2483.2,2482.5,0.64152097]
[1747747069667,17.58451706,2482.6,2482.5,0.64152097]
[1747747069877,20.21457253,2482.6,2482.5,0.64152097]
[1747747070169,12.02819738,2482.5,2482.4,7.792]
[1747747070370,18.85154954,2482.5,2482.4,7.792]
[1747747070676,18.03868785,2482.5,2482.4,7.792]
[1747747071356,4.02868423,2482.2,2481.8,17.373]
[1747747071519,4.02868423,2482.2,2482.1,7.895]
[1747747071965,5.38118423,2482.2,2482.1,7.895]
[1747747074561,4.83118423,2482.2,2482.1,7.895]
[1747747075058,5.71715687,2482.2,2482.1,7.895]
[1747747076057,6.31715687,2482.2,2482.1,7.895]
[1747747076673,4.03030791,2481.2,2481.1,0.1]
[1747747076854,4.03030791,2481.2,2480.1,0.1]
[1747747076855,5.52968194,2481.2,2480.1,0.1]
[1747747077054,4.0319329,2480.2,2480.1,0.1]
[1747747078463,4.0319329,2480.2,2480.1,7.898]
[1747747085948,0.8237,2481.6,2480.2,0.8126]
[1747747086271,4.03028455,2481.3,2480.3,17.8646179]
[1747747086446,4.03128573,2480.6,2480.4,8.0]
[1747747086653,4.85343307,2481.6,2480.6,0.7915]
[1747747086654,0.8237,2481.6,2480.6,0.7915]
[1747747086966,4.03000844,2481.4,2480.8,8.0]
[1747747087160,4.03047035,2481.1,2481.0,8.0]
[1747747088064,4.03047035,2481.1,2481.0,8.7792]
[1747747088983,4.02894437,2482.1,2481.0,8.0]
[1747747089145,4.02771064,2482.8,2481.4,8.0]
[1747747089350,4.0291297,2482.0,2481.2,8.0]
[1747747089666,4.02949591,2481.7,2481.6,8.751]
[1747747089869,4.02949591,2481.7,2481.6,10.872698]
[1747747090076,4.02949591,2481.7,2481.6,13.3650678]
[1747747090745,4.02949591,2481.7,2481.6,14.4900028]
[1747747092273,4.02949591,2481.7,2481.6,13.3100028]
[1747747092880,4.02949591,2481.7,2481.6,16.1992998]
[1747747093068,4.02949591,2481.7,2481.6,13.4992998]
[1747747093646,4.02949591,2481.7,2481.6,11.2433698]
[1747747093954,4.02998495,2481.4,2481.2,8.792]
[1747747094150,4.02998495,2481.4,2481.3,22.347559]
[1747747094383,4.02998495,2481.4,2481.3,21.159489]
[1747747094681,4.02989358,2481.5,2481.4,8.0]
[1747747094884,4.02989358,2481.5,2481.4,12.53693]
[1747747095049,4.02953394,2481.7,2481.4,14.670723]
[1747747095379,4.02966444,2481.6,2481.4,10.133793]
[1747747095541,4.02958925,2481.7,2481.4,10.133793]
[1747747095743,4.02801947,2482.7,2481.6,8.7883]
[1747747095948,0.8826,2482.9,2481.8,1.3383]
[1747747096146,0.8826,2482.9,2482.0,8.7883]
[1747747096147,4.02875489,2482.2,2482.0,8.7883]
[1747747096346,4.02875489,2482.2,2482.1,11.41923]
[1747747096546,4.02875489,2482.2,2482.1,16.008]
[1747747096746,0.8204,2481.4,2480.1,0.1]
[1747747096944,4.0316078,2480.4,2480.3,0.64152097]
[1747747097562,4.0316078,2480.4,2480.3,18.03752097]
[1747747098246,4.0316078,2480.4,2480.3,26.04552097]
[1747747098681,4.0316078,2480.4,2480.3,25.404]
[1747747099791,4.0316078,2480.4,2480.3,35.9544]
[1747747100583,4.0316078,2480.4,2480.3,36.7643]
[1747747105065,4.42798045,2480.4,2480.1,0.1]
[1747747105402,5.37113384,2479.4,2479.3,0.64152097]
[1747747105702,4.03355921,2479.2,2478.5,19.60227273]
[1747747105928,4.03355921,2479.2,2479.1,8.667]
[1747747107681,4.03355921,2479.2,2479.1,8.67]
[1747747108507,4.58355921,2479.2,2479.1,8.67]
[1747747108893,12.03355921,2479.2,2479.1,8.67]
[1747747112610,4.03355921,2479.2,2479.1,8.67]
[1747747113330,4.03355921,2479.2,2479.1,11.277]
[1747747114894,4.03348757,2479.3,2479.1,11.277]
[1747747115101,4.03195853,2480.2,2479.1,19.277]
[1747747115102,4.03355921,2479.2,2479.1,19.277]
[1747747115417,4.03355921,2479.2,2479.1,28.3411]
[1747747116979,4.03355921,2479.2,2479.1,25.324]
[1747747117199,4.03355921,2479.2,2479.1,31.230624]
[1747747117627,4.03355921,2479.2,2479.1,16.613624]
[1747747117832,4.03355921,2479.2,2479.1,31.230624]
[1747747118028,4.03355921,2479.2,2479.1,29.465884]
[1747747118742,4.03339652,2479.3,2479.2,8.0]
[1747747119037,4.03339652,2479.3,2479.2,11.7369884]
[1747747121142,4.03339652,2479.3,2479.2,17.7819884]
[1747747121434,4.03301677,2479.6,2479.2,42.13103932]
[1747747121597,4.03268601,2479.8,2479.4,8.0]
[1747747121598,4.03279355,2479.7,2479.4,8.0]
[1747747121804,4.03279355,2479.7,2479.6,8.0]
[1747747122003,4.03279355,2479.7,2479.6,38.097579]
[1747747123605,4.03279355,2479.7,2479.6,19.242739]
[1747747123936,4.03209334,2480.2,2479.6,19.242739]
[1747747124135,4.03268091,2479.8,2479.7,0.7746]
[1747747124307,4.03268091,2479.8,2479.7,32.41233879]
[1747747125317,4.03268091,2479.8,2479.7,30.81952879]
[1747747127154,4.03268091,2479.8,2479.7,28.21451579]
[1747747127559,4.03268091,2479.8,2479.7,30.78152879]
[1747747127858,4.03268091,2479.8,2479.7,28.21451579]
[1747747129161,4.03268091,2479.8,2479.7,30.82320279]
[1747747129362,4.03268091,2479.8,2479.7,28.21451579]
[1747747129659,4.03268091,2479.8,2479.7,30.82320279]
[1747747130031,4.03268091,2479.8,2479.7,28.21451579]
[1747747130227,4.03268091,2479.8,2479.7,32.00236579]
[1747747130428,4.03268091,2479.8,2479.7,28.21451579]
[1747747130645,4.03268091,2479.8,2479.7,34.25851579]
[1747747131037,4.03268091,2479.8,2479.7,36.79120279]
[1747747131238,4.03268091,2479.8,2479.7,34.25851579]
[1747747132057,4.03268091,2479.8,2479.7,32.2286]
[1747747132226,4.03268091,2479.8,2479.7,31.454]
[1747747134066,4.03268091,2479.8,2479.7,33.951384]
[1747747134266,4.03268091,2479.8,2479.7,27.835384]
[1747747134442,4.03268091,2479.8,2479.7,42.450384]
[1747747135044,4.03268091,2479.8,2479.7,42.522384]
[1747747135445,4.03268091,2479.8,2479.7,40.025]
[1747747136158,4.03268091,2479.8,2479.7,42.450651]
[1747747136666,4.03268091,2479.8,2479.7,33.981]
[1747747137164,4.03122161,2480.7,2479.9,0.8323]
[1747747137165,4.03234837,2480.0,2479.9,0.8323]
[1747747137465,4.03219191,2480.1,2479.9,29.242397]
[1747747137766,4.03219191,2480.1,2480.0,17.09068]
[1747747138238,4.03219191,2480.1,2480.0,17.60232]
[1747747139063,4.03219191,2480.1,2480.0,3.23732]
[1747747139367,4.03225806,2480.0,2479.9,8.0]
[1747747139667,4.03225806,2480.0,2479.9,25.452366]
[1747747140248,4.03225806,2480.0,2479.9,29.35472888]
[1747747140462,4.03225806,2480.0,2479.9,11.087366]
[1747747140634,4.03225806,2480.0,2479.9,24.418366]
[1747747142779,4.03225806,2480.0,2479.9,24.80360655]
[1747747143581,4.03225806,2480.0,2479.9,22.74824055]
[1747747143985,4.03225806,2480.0,2479.9,25.33986755]
[1747747144144,4.03225806,2480.0,2479.9,19.29686755]
[1747747144494,4.03225806,2480.0,2479.9,25.30586755]
[1747747145479,4.03225806,2480.0,2479.9,19.26286755]
[1747747145679,4.03225806,2480.0,2479.9,25.30586755]
[1747747146181,4.03213443,2480.1,2480.0,8.0]
[1747747146384,4.03213443,2480.1,2480.0,16.990735]
[1747747147669,4.03213443,2480.1,2480.0,17.37597555]
[1747747148374,4.03213443,2480.1,2480.0,13.85444255]
[1747747149082,4.0318871,2480.3,2480.1,0.7673]
[1747747149388,4.03090386,2480.9,2480.3,8.0]
[1747747149683,4.03140125,2480.6,2480.5,8.0]
[1747747149867,0.7911,2481.3,2480.6,0.8057]
[1747747150057,4.03096422,2480.8,2480.6,0.8057]
[1747747150246,4.03091504,2480.9,2480.8,8.0]
[1747747150447,4.03091504,2480.9,2480.8,24.944859]
[1747747151283,4.03091504,2480.9,2480.8,22.944859]
[1747747151486,4.03091504,2480.9,2480.8,23.33009955]
[1747747151674,4.03091504,2480.9,2480.8,8.70524055]
[1747747151850,4.03091504,2480.9,2480.8,8.38524055]
[1747747152191,4.03091504,2480.9,2480.8,22.74824055]
[1747747153048,4.03091504,2480.9,2480.8,8.38524055]
[1747747153382,4.83708488,2480.9,2480.8,22.74624055]
[1747747154079,4.83708488,2480.9,2480.8,16.70424055]
[1747747154279,4.83708488,2480.9,2480.8,16.319]
[1747747155489,4.03128275,2480.6,2480.5,17.404]
[1747747155666,4.03128275,2480.6,2480.5,25.722]
[1747747155861,4.03128275,2480.6,2480.5,33.722]
[1747747156276,4.03128275,2480.6,2480.5,25.722]
[1747747159357,5.24062251,2480.6,2480.5,25.722]
[1747747167002,5.24062251,2480.6,2480.5,33.722]
[1747747167428,5.24062251,2480.6,2480.5,17.404]
[1747747167703,5.24062251,2480.6,2480.5,25.537]
[1747747167704,6.02362251,2480.6,2480.5,25.537]
[1747747168707,5.24062251,2480.6,2480.5,25.537]
[1747747169005,4.03128275,2480.6,2480.5,25.537]
[1747747169903,4.03128275,2480.6,2480.5,33.537]
[1747747174500,4.03119451,2480.7,2480.6,8.0]
[1747747174691,4.03119451,2480.7,2480.6,17.413549]
[1747747175017,4.03119451,2480.7,2480.6,8.7941]
[1747747175235,4.03119451,2480.7,2480.6,11.551968]
[1747747175378,4.03119451,2480.7,2480.6,8.7941]
[1747747176029,0.7823,2481.3,2480.6,22.17916715]
[1747747176313,4.03060778,2481.1,2480.6,15.9038859]
[1747747176508,4.03034071,2481.2,2480.9,0.7558]
[1747747176710,4.03047035,2481.1,2481.0,16.132]
[1747747177016,4.03009338,2481.4,2481.1,8.0]
[1747747177190,3.61424977,2481.4,2481.3,8.8235]
[1747747177409,4.02998307,2481.4,2481.3,30.349079]
[1747747178257,4.02998307,2481.4,2481.3,30.73460975]
[1747747178400,4.02933354,2481.8,2481.3,30.73460975]
[1747747178604,4.02965828,2481.6,2481.5,8.0]
[1747747178807,4.02965828,2481.6,2481.5,16.132]
[1747747179204,4.02965828,2481.6,2481.5,8.35754543]
[1747747180709,0.1,2481.9,2481.6,0.7992]
[1747747180926,4.02933354,2481.8,2481.7,21.409033]
[1747747181142,4.02933354,2481.8,2481.7,8.211816]
[1747747181318,4.02933354,2481.8,2481.7,14.55652733]
[1747747181642,4.02933354,2481.8,2481.7,0.61007276]
[1747747181840,4.02933354,2481.8,2481.7,18.24032276]
[1747747182042,4.02933354,2481.8,2481.7,14.78207276]
[1747747182737,4.02933354,2481.8,2481.7,16.90032276]
[1747747182941,4.02933354,2481.8,2481.7,14.78207276]
[1747747183138,4.02933354,2481.8,2481.7,18.68067271]
[1747747184553,4.02927013,2481.9,2481.7,18.68067271]
[1747747184718,4.02927013,2481.9,2481.8,7.71478]
[1747747185653,4.02907801,2482.0,2481.8,7.71478]
[1747747185814,4.02905333,2482.0,2481.7,15.73097728]
[1747747186142,4.02908122,2482.0,2481.8,1.65386773]
[1747747186850,4.02838542,2482.4,2481.8,1.65386773]
[1747747187327,4.02917119,2481.9,2481.8,1.65386773]
[1747747187513,4.02917119,2481.9,2481.8,9.29292473]
[1747747187714,4.02917119,2481.9,2481.8,1.65386773]
[1747747187917,4.02917119,2481.9,2481.8,18.998]
[1747747189056,4.02917119,2481.9,2481.8,18.771892]
[1747747189620,4.02917119,2481.9,2481.8,16.129]
[1747747190054,4.02982067,2481.5,2481.4,18.1693]
[1747747190254,4.02982067,2481.5,2481.4,33.644399]
[1747747190469,4.02982067,2481.5,2481.4,37.1256726]
[1747747190747,4.02961579,2481.7,2481.6,0.7683]
[1747747190919,4.02949591,2481.7,2481.6,16.349807]
[1747747192040,4.02949591,2481.7,2481.6,13.955607]
[1747747192243,4.02949591,2481.7,2481.6,17.85796988]
[1747747192622,4.02949591,2481.7,2481.6,22.168]
[1747747192948,4.02949591,2481.7,2481.6,24.271873]
[1747747195557,4.02949591,2481.7,2481.6,22.168]
[1747747196021,4.02949591,2481.7,2481.6,16.129]
[1747747196221,4.02949591,2481.7,2481.6,22.168]
[1747747196854,4.02949591,2481.7,2481.6,24.662892]
[1747747197057,4.02949591,2481.7,2481.6,16.035]
[1747747197520,4.02949591,2481.7,2481.6,18.500892]
[1747747197716,4.02949591,2481.7,2481.6,16.035]
[1747747200867,4.02949591,2481.7,2481.6,8.0]
[1747747201070,4.02982067,2481.5,2481.4,17.401]
[1747747201371,4.02982067,2481.5,2481.4,25.436]
[1747747203765,4.02903539,2482.0,2481.4,25.436]
[1747747203766,0.1,2482.9,2481.8,0.7645]
[1747747203925,0.1,2482.9,2482.4,1.3145]
[1747747204130,4.02613055,2483.8,2482.8,0.7645]
[1747747204330,4.02689968,2483.3,2482.9,10.44434087]
[1747747204530,4.02731781,2483.1,2483.0,8.7861513]
[1747747204857,4.02713895,2483.2,2483.1,8.0]
[1747747205058,4.02713895,2483.2,2483.1,10.83819764]
[1747747205260,5.2858252,2483.4,2483.1,32.36377664]
[1747747205464,4.02620267,2483.8,2483.2,24.05225798]
[1747747205465,4.02616826,2483.8,2483.2,24.05225798]
[1747747205681,4.02617725,2483.8,2483.4,0.8291]
[1747747205881,4.12602384,2483.9,2483.6,8.0]
[1747747206029,4.12602384,2483.9,2483.7,2.44434087]
[1747747206433,0.1,2483.9,2483.8,14.363652]
[1747747206654,4.12592696,2483.9,2483.8,22.598]
[1747747206840,4.12592696,2483.9,2483.8,22.597]
[1747747207141,4.12592696,2483.9,2483.8,8.0]
[1747747207339,4.12592696,2483.9,2483.8,16.78361045]
[1747747207866,4.12592696,2483.9,2483.8,8.0]
[1747747208034,4.12592696,2483.9,2483.5,17.394]
[1747747208035,4.02641327,2483.6,2483.5,17.394]
[1747747208232,4.02641327,2483.6,2483.5,25.953]
[1747747209337,4.02641327,2483.6,2483.5,25.951]
[1747747209980,4.02625312,2483.7,2483.5,29.371]
[1747747210145,4.02639109,2483.7,2483.6,13.68942]
[1747747210345,0.1,2483.9,2483.6,17.59178288]
[1747747210346,4.02608905,2483.8,2483.6,17.59178288]
[1747747210548,4.02625115,2483.7,2483.6,13.68942]
[1747747210751,4.02625115,2483.7,2483.6,8.0]
[1747747210946,4.02625115,2483.7,2483.6,14.78543]
[1747747211147,4.02625115,2483.7,2483.6,12.44404]
[1747747211667,0.1,2483.9,2483.7,0.8258]
[1747747211980,4.02608905,2483.8,2483.7,12.72816288]
[1747747212288,4.02608905,2483.8,2483.7,8.0]
[1747747212773,4.02641327,2483.6,2483.5,33.951]
[1747747212938,4.02641327,2483.6,2483.5,25.394]
[1747747213446,4.02641327,2483.6,2483.5,17.394]
[1747747213843,4.02641327,2483.6,2483.5,25.95]
[1747747214068,5.31510133,2483.6,2483.5,25.95]
[1747747214249,5.31510133,2483.6,2483.5,17.394]
[1747747214450,5.31510133,2483.6,2483.5,25.95]
[1747747215656,6.09400133,2483.6,2483.5,25.95]
[1747747216376,4.80531327,2483.6,2483.5,25.95]
[1747747216677,4.02641327,2483.6,2483.5,25.95]
[1747747220283,4.02641327,2483.6,2483.5,33.95]
[1747747220470,4.02633891,2483.7,2483.6,8.7713]
[1747747220678,4.02618995,2483.8,2483.6,18.82125688]
[1747747220871,4.02618995,2483.8,2483.7,12.866923]
[1747747221556,4.02625115,2483.7,2483.6,4.67366288]
[1747747221893,4.02641327,2483.6,2483.5,17.394]
[1747747222112,4.02641327,2483.6,2483.5,25.949]
[1747747224782,4.02641327,2483.6,2483.5,17.394]
[1747747224975,4.02641327,2483.6,2483.5,25.949]
[1747747225655,4.81051327,2483.6,2483.5,25.949]
[1747747225856,6.09680871,2483.6,2483.5,25.949]
[1747747226823,4.81051327,2483.6,2483.5,25.949]
[1747747227109,4.81051327,2483.6,2483.5,17.394]
[1747747227273,4.02641327,2483.6,2483.5,25.949]
[1747747229102,0.7854,2485.8,2483.7,0.8098]
[1747747229392,4.02383635,2485.2,2484.2,0.7858]
[1747747229579,4.02446877,2484.8,2484.2,0.7858]
[1747747229921,4.02498726,2484.5,2484.4,8.0]
[1747747230411,0.1,2484.9,2484.4,16.8069396]
[1747747230583,0.1,2484.9,2484.4,8.6457076]
[1747747230912,4.12439386,2484.9,2484.5,22.308179]
[1747747231085,4.12439386,2484.9,2484.6,11.803268]
[1747747231685,4.02447366,2484.8,2484.6,11.803268]
[1747747232015,4.12437157,2484.9,2484.6,11.390784]
[1747747232423,4.02449664,2484.8,2484.6,11.390784]
[1747747232791,4.02449664,2484.8,2484.6,11.79043311]
[1747747232992,4.12430845,2484.9,2484.7,9.773584]
[1747747233188,4.12430845,2484.9,2484.8,8.553]
[1747747233382,4.12430845,2484.9,2484.8,16.196284]
[1747747233840,4.12430845,2484.9,2484.8,25.8159124]
[1747747233841,0.1,2484.9,2484.8,25.8159124]
[1747747234077,0.1,2484.9,2484.8,26.6369124]
[1747747234284,0.1,2484.9,2484.8,26.86149087]
[1747747235575,0.1,2484.9,2484.8,27.24447523]
[1747747236768,0.7734,2486.1,2484.8,27.79447523]
[1747747236974,4.02293521,2485.8,2485.4,8.0]
[1747747237304,4.12275492,2485.9,2485.6,0.803]
[1747747237499,4.12275492,2485.9,2485.6,6.836]
[1747747237713,0.1,2485.9,2485.7,19.335528]
[1747747237875,4.12277163,2485.9,2485.7,12.944873]
[1747747238080,4.12268796,2485.9,2485.8,1.9780873]
[1747747238259,4.12268796,2485.9,2485.8,8.2461713]
[1747747238460,4.12268796,2485.9,2485.8,12.2551713]
[1747747238668,4.12268796,2485.9,2485.8,17.5551713]
[1747747238881,4.12268796,2485.9,2485.8,16.2461713]
[1747747239508,4.12268796,2485.9,2485.8,14.8171713]
[1747747241784,4.12268796,2485.9,2485.8,8.0]
[1747747242304,4.02317347,2485.6,2485.5,17.375]
[1747747242705,4.02317347,2485.6,2485.5,26.131]
[1747747242909,4.02317347,2485.6,2485.5,34.131]
[1747747243223,4.02317347,2485.6,2485.5,43.603318]
[1747747243383,4.02317347,2485.6,2485.5,41.120088]
[1747747244108,4.02317347,2485.6,2485.5,34.131]
[1747747244325,4.02317347,2485.6,2485.5,40.60386288]
[1747747246308,4.02304372,2485.7,2485.6,8.0]
[1747747246827,4.02304372,2485.7,2485.6,16.755]
[1747747248213,0.8125,2487.2,2486.0,0.8042]
[1747747248387,4.02209266,2486.3,2486.2,8.0]
[1747747248588,4.02209266,2486.3,2486.2,16.163084]
[1747747248790,4.02209266,2486.3,2486.2,26.050806]
[1747747249853,4.02209266,2486.3,2486.2,20.020806]
[1747747250139,4.02209266,2486.3,2486.2,20.42455367]
[1747747250821,4.02168244,2486.6,2486.2,23.23847104]
[1747747251120,4.0217604,2486.5,2486.3,9.019561]
[1747747251315,4.02157117,2486.6,2486.5,8.0]
[1747747251512,4.12113629,2486.9,2486.5,21.296416]
[1747747251722,4.02133627,2486.8,2486.6,0.8171]
[1747747252011,4.02139381,2486.7,2486.6,0.8171]
[1747747252213,4.02139381,2486.7,2486.6,3.526]
[1747747252410,4.02139381,2486.7,2486.6,11.649057]
[1747747252619,4.02139381,2486.7,2486.6,14.295359]
[1747747252784,4.02139381,2486.7,2486.6,13.675026]
[1747747252979,4.02139381,2486.7,2486.6,13.229611]
[1747747253379,4.02139381,2486.7,2486.6,12.700611]
[1747747253581,4.02139381,2486.7,2486.6,11.588]
[1747747255525,0.1,2486.9,2486.7,8.0]
[1747747255732,0.1,2486.9,2486.8,14.376246]
[1747747255891,4.12116235,2486.9,2486.8,14.376246]
[1747747256284,4.12116235,2486.9,2486.8,23.084]
[1747747256606,4.02171727,2486.5,2486.4,17.365]
[1747747256916,4.02146194,2486.7,2486.5,8.0]
[1747747257217,4.02146194,2486.7,2486.6,14.887802]
[1747747257403,4.02146194,2486.7,2486.6,16.172802]
[1747747258116,4.02146194,2486.7,2486.6,8.0]
[1747747258418,4.02146194,2486.7,2486.6,23.083]
[1747747258625,4.02146194,2486.7,2486.6,27.873091]
[1747747259216,4.02146194,2486.7,2486.6,26.928912]
[1747747259388,4.02146194,2486.7,2486.6,20.900912]
[1747747259588,4.02146194,2486.7,2486.6,20.213466]
[1747747260041,4.02146194,2486.7,2486.6,17.055]
[1747747260319,4.02146194,2486.7,2486.6,17.054]
[1747747260619,4.02146194,2486.7,2486.6,9.054]
[1747747261326,4.02171727,2486.5,2486.4,25.365]